[Event "Late-Titled-Tuesday-Blitz-October-10-2023"]
[Site "Chess.com"]
[Date "2023.10.10"]
[Round "4"]
[White "SchachmattTV_Tobi"]
[Black "IPAchess"]
[Result "1-0"]
[WhiteElo "2553"]
[BlackElo "2372"]
[TimeControl "180+1"]
[EndTime "14:37:37 PDT"]
[Termination "SchachmattTV_Tobi won by resignation"]

1. d4 {[%clk 0:02:43.8]} 1... d5 {[%clk 0:02:55.4]} 2. c4 {[%clk 0:02:43.8]}
2... e6 {[%clk 0:02:54.6]} 3. Nc3 {[%clk 0:02:42.9]} 3... Nf6 {[%clk 0:02:54.1]}
4. Nf3 {[%clk 0:02:40.5]} 4... Bb4 {[%clk 0:02:50]} 5. cxd5 {[%clk 0:02:33.3]}
5... exd5 {[%clk 0:02:50.9]} 6. Bg5 {[%clk 0:02:32.3]} 6... O-O {[%clk
0:02:23.2]} 7. e3 {[%clk 0:02:31.4]} 7... Bf5 {[%clk 0:02:21.9]} 8. Be2 {[%clk
0:02:27.1]} 8... Nbd7 {[%clk 0:02:19.8]} 9. O-O {[%clk 0:02:27.3]} 9... c6
{[%clk 0:02:10.4]} 10. Rc1 {[%clk 0:02:26.1]} 10... Be7 {[%clk 0:02:06.5]} 11.
a3 {[%clk 0:02:18.2]} 11... a5 {[%clk 0:01:55]} 12. Na4 {[%clk 0:02:17.7]} 12...
Ne4 {[%clk 0:01:50.9]} 13. Bxe7 {[%clk 0:02:16.4]} 13... Qxe7 {[%clk 0:01:51.5]}
14. Nd2 {[%clk 0:02:14.5]} 14... Nd6 {[%clk 0:01:48.6]} 15. Nc5 {[%clk
0:02:08.7]} 15... Nf6 {[%clk 0:01:38.6]} 16. Bd3 {[%clk 0:02:05.5]} 16... Bxd3
{[%clk 0:01:37.5]} 17. Nxd3 {[%clk 0:02:06.4]} 17... Rfe8 {[%clk 0:01:34.1]} 18.
Re1 {[%clk 0:02:04.9]} 18... Qe6 {[%clk 0:01:34.2]} 19. h3 {[%clk 0:02:03.2]}
19... Re7 {[%clk 0:01:24.8]} 20. Qc2 {[%clk 0:01:47.3]} 20... Rae8 {[%clk
0:01:24.2]} 21. b4 {[%clk 0:01:46.6]} 21... axb4 {[%clk 0:01:23.8]} 22. axb4
{[%clk 0:01:47.5]} 22... Qf5 {[%clk 0:01:05.4]} 23. Nc5 {[%clk 0:00:59.4]} 23...
Qg5 {[%clk 0:01:02]} 24. Ra1 {[%clk 0:00:52.8]} 24... h5 {[%clk 0:00:58.8]} 25.
Nf3 {[%clk 0:00:50.7]} 25... Qh6 {[%clk 0:00:56.7]} 26. Ra7 {[%clk 0:00:46.6]}
26... h4 {[%clk 0:00:55.7]} 27. Rea1 {[%clk 0:00:44.5]} 27... Nfe4 {[%clk
0:00:50.4]} 28. Ra8 {[%clk 0:00:40.3]} 28... Nxc5 {[%clk 0:00:46.3]} 29. Rxe8+
{[%clk 0:00:38.9]} 29... Rxe8 {[%clk 0:00:44.3]} 30. bxc5 {[%clk 0:00:39.8]}
30... Ne4 {[%clk 0:00:43.7]} 31. Ra7 {[%clk 0:00:37.9]} 31... Re7 {[%clk
0:00:33.1]} 32. Qb2 {[%clk 0:00:38.2]} 32... Qf6 {[%clk 0:00:15.7]} 33. Rxb7
{[%clk 0:00:36]} 33... g5 {[%clk 0:00:16.1]} 34. Rxe7 {[%clk 0:00:30.6]} 34...
Qxe7 {[%clk 0:00:17]} 35. Ne5 {[%clk 0:00:31.4]} 35... Qc7 {[%clk 0:00:16.1]}
36. Qb6 {[%clk 0:00:29]} 36... Qe7 {[%clk 0:00:14.9]} 37. Qxc6 {[%clk 0:00:26]}
37... g4 {[%clk 0:00:11.2]} 38. Qxd5 {[%clk 0:00:24.9]} 38... Nf6 {[%clk
0:00:10.3]} 39. Qa8+ {[%clk 0:00:25.5]} 39... Kg7 {[%clk 0:00:10.2]} 40. hxg4
{[%clk 0:00:25]} 40... Qe6 {[%clk 0:00:09.5]} 41. Qf3 {[%clk 0:00:25.2]} 41...
Qb3 {[%clk 0:00:08.9]} 42. g5 {[%clk 0:00:24.2]} 42... Nh7 {[%clk 0:00:09.4]}
43. Qxf7+ {[%clk 0:00:18.5]} 43... Qxf7 {[%clk 0:00:10]} 44. Nxf7 {[%clk
0:00:19.4]} 44... Kxf7 {[%clk 0:00:10.6]} 45. c6 {[%clk 0:00:20.3]} 45... Ke6
{[%clk 0:00:10.9]} 46. g6 {[%clk 0:00:17.9]} 46... Nf6 {[%clk 0:00:10.7]} 47. e4
{[%clk 0:00:12.6]} 47... Nxe4 {[%clk 0:00:08.7]} 48. g7 {[%clk 0:00:11.5]} 48...
Nf6 {[%clk 0:00:07.8]} 49. d5+ {[%clk 0:00:09.6]} 49... Kd6 {[%clk 0:00:08.1]}
50. Kh2 {[%clk 0:00:09.8]} 50... Kc7 {[%clk 0:00:03.5]} 51. Kh3 {[%clk 0:00:10]}
51... Kd6 {[%clk 0:00:04.1]} 52. Kxh4 {[%clk 0:00:10.5]} 52... Kc7 {[%clk
0:00:04.2]} 53. Kg5 {[%clk 0:00:10.9]} 53... Ng8 {[%clk 0:00:04.7]} 54. Kg6
{[%clk 0:00:10.5]} 54... Kd6 {[%clk 0:00:05.4]} 55. g4 {[%clk 0:00:09.3]} 55...
Ne7+ {[%clk 0:00:05.8]} 56. Kf7 {[%clk 0:00:09.3]} 1-0

[Event "Late-Titled-Tuesday-Blitz-October-10-2023"]
[Site "Chess.com"]
[Date "2023.10.10"]
[Round "4"]
[White "K_alena13"]
[Black "Eloist"]
[Result "0-1"]
[WhiteElo "2154"]
[BlackElo "2440"]
[TimeControl "180+1"]
[EndTime "14:37:37 PDT"]
[Termination "Eloist won by resignation"]

1. Nf3 {[%clk 0:03:00.9]} 1... Nf6 {[%clk 0:02:59.2]} 2. c4 {[%clk 0:02:59.7]}
2... b6 {[%clk 0:02:58.7]} 3. Nc3 {[%clk 0:02:58.8]} 3... Bb7 {[%clk 0:02:59]}
4. g3 {[%clk 0:02:58.5]} 4... e6 {[%clk 0:02:59.2]} 5. Bg2 {[%clk 0:02:58.8]}
5... Be7 {[%clk 0:02:57.8]} 6. O-O {[%clk 0:02:58.3]} 6... O-O {[%clk
0:02:57.9]} 7. d4 {[%clk 0:02:58.5]} 7... Ne4 {[%clk 0:02:56.9]} 8. Bd2 {[%clk
0:02:57.9]} 8... f5 {[%clk 0:02:56.2]} 9. Qc2 {[%clk 0:02:49.2]} 9... Nxc3
{[%clk 0:02:54.6]} 10. Bxc3 {[%clk 0:02:46.4]} 10... Be4 {[%clk 0:02:54.1]} 11.
Qd2 {[%clk 0:02:44.3]} 11... d6 {[%clk 0:02:53.3]} 12. b4 {[%clk 0:02:40.4]}
12... Bf6 {[%clk 0:02:51.7]} 13. Rfd1 {[%clk 0:02:20.2]} 13... Nd7 {[%clk
0:02:49.6]} 14. c5 {[%clk 0:01:41]} 14... Qe8 {[%clk 0:02:39.4]} 15. Rac1 {[%clk
0:01:30.1]} 15... Qh5 {[%clk 0:02:38]} 16. Ne1 {[%clk 0:01:13.5]} 16... Bg5
{[%clk 0:02:30.8]} 17. e3 {[%clk 0:00:57.5]} 17... Bxg2 {[%clk 0:02:28.4]} 18.
Nxg2 {[%clk 0:00:56.2]} 18... Nf6 {[%clk 0:02:27.5]} 19. h4 {[%clk 0:00:45.4]}
19... Ne4 {[%clk 0:02:24.8]} 20. Qe1 {[%clk 0:00:36.3]} 20... Bh6 {[%clk
0:02:19.4]} 21. Nf4 {[%clk 0:00:29.7]} 21... Bxf4 {[%clk 0:01:54]} 22. exf4
{[%clk 0:00:30.6]} 22... d5 {[%clk 0:01:36.8]} 23. cxb6 {[%clk 0:00:20.3]} 23...
axb6 {[%clk 0:01:35.6]} 24. Rc2 {[%clk 0:00:16.6]} 24... Ra3 {[%clk 0:01:33.1]}
25. Bd2 {[%clk 0:00:12.2]} 25... Rfa8 {[%clk 0:01:30.5]} 26. Be3 {[%clk
0:00:11.1]} 26... Rxa2 {[%clk 0:01:27.8]} 27. Rxc7 {[%clk 0:00:11.1]} 27... Nd6
{[%clk 0:01:08.7]} 28. Rcc1 {[%clk 0:00:07.3]} 28... Nc4 {[%clk 0:01:06.8]} 29.
Qf1 {[%clk 0:00:05.6]} 29... Rb2 {[%clk 0:01:04.7]} 30. Rb1 {[%clk 0:00:05.2]}
30... Raa2 {[%clk 0:01:02.3]} 31. Rxb2 {[%clk 0:00:05.2]} 31... Rxb2 {[%clk
0:01:01.9]} 32. Re1 {[%clk 0:00:05.6]} 32... Qf3 {[%clk 0:01:01]} 33. Qg2 {[%clk
0:00:04.9]} 33... Qxg2+ {[%clk 0:00:56.9]} 34. Kxg2 {[%clk 0:00:05.8]} 34...
Rxb4 {[%clk 0:00:57.1]} 35. Rc1 {[%clk 0:00:04.8]} 35... Kf7 {[%clk 0:00:56.7]}
36. Kf3 {[%clk 0:00:05.1]} 36... b5 {[%clk 0:00:56.6]} 37. Ra1 {[%clk
0:00:05.1]} 37... Ra4 {[%clk 0:00:56.3]} 38. Rb1 {[%clk 0:00:05.5]} 38... b4
{[%clk 0:00:55.8]} 39. Ke2 {[%clk 0:00:05.9]} 39... Ra2+ {[%clk 0:00:53.9]} 40.
Kd3 {[%clk 0:00:06.2]} 40... Ra3+ {[%clk 0:00:52.5]} 41. Kc2 {[%clk 0:00:05.1]}
41... Nxe3+ {[%clk 0:00:51.1]} 42. fxe3 {[%clk 0:00:06]} 42... Rxe3 {[%clk
0:00:51.2]} 43. Rxb4 {[%clk 0:00:06.6]} 43... Rxg3 {[%clk 0:00:50.9]} 44. Rb7+
{[%clk 0:00:07.2]} 44... Kf6 {[%clk 0:00:51.1]} 45. Kd2 {[%clk 0:00:06.9]} 45...
Rg4 {[%clk 0:00:50.5]} 46. Ke3 {[%clk 0:00:07.4]} 46... Rxh4 {[%clk 0:00:50.6]}
47. Rb8 {[%clk 0:00:08.3]} 47... Rh3+ {[%clk 0:00:50.8]} 48. Kf2 {[%clk
0:00:08.2]} 48... Rd3 {[%clk 0:00:49]} 49. Rb4 {[%clk 0:00:07.5]} 49... h6
{[%clk 0:00:48.1]} 50. Ke2 {[%clk 0:00:08]} 50... Ra3 {[%clk 0:00:47.5]} 51. Rb8
{[%clk 0:00:07.3]} 51... g5 {[%clk 0:00:47.1]} 52. Rf8+ {[%clk 0:00:07.2]} 52...
Kg7 {[%clk 0:00:47.2]} 53. Re8 {[%clk 0:00:07.2]} 53... Kf7 {[%clk 0:00:46.6]}
54. Rh8 {[%clk 0:00:06.6]} 54... Ra2+ {[%clk 0:00:43.7]} 55. Kf3 {[%clk
0:00:06.3]} 55... g4+ {[%clk 0:00:42.8]} 56. Kg3 {[%clk 0:00:06.2]} 56... Kg6
{[%clk 0:00:41.9]} 57. Re8 {[%clk 0:00:06]} 57... Ra3+ {[%clk 0:00:40.4]} 58.
Kf2 {[%clk 0:00:04.8]} 58... Kf7 {[%clk 0:00:39.3]} 59. Rh8 {[%clk 0:00:04.3]}
59... Rf3+ {[%clk 0:00:39.5]} 60. Ke2 {[%clk 0:00:03.9]} 60... Rxf4 {[%clk
0:00:40.4]} 61. Rxh6 {[%clk 0:00:04]} 61... Re4+ {[%clk 0:00:39.8]} 62. Kd3
{[%clk 0:00:03.3]} 62... g3 {[%clk 0:00:37.3]} 63. Rh1 {[%clk 0:00:02.8]} 63...
f4 {[%clk 0:00:34.9]} 64. Rg1 {[%clk 0:00:03]} 64... Kf6 {[%clk 0:00:34.2]} 65.
Rg2 {[%clk 0:00:03.4]} 65... Kf5 {[%clk 0:00:33.9]} 66. Kc3 {[%clk 0:00:03.8]}
66... Kg4 {[%clk 0:00:34]} 67. Kd3 {[%clk 0:00:04.2]} 67... f3 {[%clk
0:00:34.2]} 0-1

[Event "Late-Titled-Tuesday-Blitz-October-10-2023"]
[Site "Chess.com"]
[Date "2023.10.10"]
[Round "4"]
[White "Xqswdc"]
[Black "arminmusovic"]
[Result "0-1"]
[WhiteElo "2328"]
[BlackElo "2509"]
[TimeControl "180+1"]
[EndTime "14:37:40 PDT"]
[Termination "arminmusovic won by checkmate"]

1. e4 {[%clk 0:03:00.9]} 1... c6 {[%clk 0:02:59.7]} 2. Nc3 {[%clk 0:03:00.6]}
2... d5 {[%clk 0:03:00.4]} 3. Nf3 {[%clk 0:03:01.4]} 3... dxe4 {[%clk
0:03:00.1]} 4. Nxe4 {[%clk 0:03:02.3]} 4... Nf6 {[%clk 0:03:00.8]} 5. Qe2 {[%clk
0:03:03]} 5... Nxe4 {[%clk 0:03:01.4]} 6. Qxe4 {[%clk 0:03:03.9]} 6... Qd5
{[%clk 0:03:02]} 7. Qh4 {[%clk 0:03:03.3]} 7... Qe6+ {[%clk 0:03:02.5]} 8. Be2
{[%clk 0:03:03.7]} 8... Qg4 {[%clk 0:03:03.1]} 9. Qg3 {[%clk 0:03:04.4]} 9...
Qxg3 {[%clk 0:03:03.8]} 10. hxg3 {[%clk 0:03:05.3]} 10... g6 {[%clk 0:03:04.6]}
11. d4 {[%clk 0:03:05.1]} 11... h5 {[%clk 0:03:05.1]} 12. Bf4 {[%clk 0:02:43.1]}
12... Bg7 {[%clk 0:03:00.8]} 13. O-O-O {[%clk 0:02:42.8]} 13... Bg4 {[%clk
0:02:55]} 14. Bc4 {[%clk 0:02:31.3]} 14... Nd7 {[%clk 0:02:44.5]} 15. Rhe1
{[%clk 0:02:18.1]} 15... Nb6 {[%clk 0:02:27.8]} 16. Bb3 {[%clk 0:02:16]} 16...
a5 {[%clk 0:02:15.1]} 17. a4 {[%clk 0:02:09.2]} 17... Nd5 {[%clk 0:02:09.6]} 18.
Bd6 {[%clk 0:01:39.1]} 18... e6 {[%clk 0:01:50.8]} 19. Kb1 {[%clk 0:01:30.4]}
19... O-O-O {[%clk 0:01:27.9]} 20. Be5 {[%clk 0:01:08.5]} 20... f6 {[%clk
0:01:16.1]} 21. Bf4 {[%clk 0:01:06]} 21... Rhe8 {[%clk 0:01:00.3]} 22. Bd2
{[%clk 0:01:04.7]} 22... b6 {[%clk 0:01:00.2]} 23. c3 {[%clk 0:00:57.4]} 23...
Kd7 {[%clk 0:00:49.8]} 24. Bc1 {[%clk 0:00:56.5]} 24... Re7 {[%clk 0:00:46.9]}
25. Bc2 {[%clk 0:00:55]} 25... g5 {[%clk 0:00:41]} 26. Rh1 {[%clk 0:00:43.2]}
26... Rh8 {[%clk 0:00:37.9]} 27. Rde1 {[%clk 0:00:42.9]} 27... Bf5 {[%clk
0:00:24.9]} 28. Nd2 {[%clk 0:00:33.7]} 28... Bxc2+ {[%clk 0:00:24.7]} 29. Kxc2
{[%clk 0:00:34.6]} 29... f5 {[%clk 0:00:24.2]} 30. Nc4 {[%clk 0:00:34.7]} 30...
Bf6 {[%clk 0:00:23.2]} 31. b3 {[%clk 0:00:23]} 31... Reh7 {[%clk 0:00:22.6]} 32.
f3 {[%clk 0:00:19.9]} 32... h4 {[%clk 0:00:22.6]} 33. g4 {[%clk 0:00:19.2]}
33... fxg4 {[%clk 0:00:20.5]} 34. fxg4 {[%clk 0:00:20.1]} 34... h3 {[%clk
0:00:20]} 35. gxh3 {[%clk 0:00:18.3]} 35... Rxh3 {[%clk 0:00:20.9]} 36. Rxh3
{[%clk 0:00:17.2]} 36... Rxh3 {[%clk 0:00:21.2]} 37. Bd2 {[%clk 0:00:15.5]}
37... Rg3 {[%clk 0:00:21.2]} 38. Rf1 {[%clk 0:00:14.3]} 38... Rxg4 {[%clk
0:00:18.3]} 39. Nxb6+ {[%clk 0:00:08.9]} 39... Ke7 {[%clk 0:00:11.9]} 40. Nc4
{[%clk 0:00:09.3]} 40... Rg2 {[%clk 0:00:11.6]} 41. Nxa5 {[%clk 0:00:07.6]}
41... Ne3+ {[%clk 0:00:11.8]} 42. Kd3 {[%clk 0:00:07.3]} 42... Nxf1 {[%clk
0:00:12.7]} 43. Nxc6+ {[%clk 0:00:06.3]} 43... Kd6 {[%clk 0:00:12.5]} 44. Nb4
{[%clk 0:00:01.5]} 44... Rxd2+ {[%clk 0:00:12.1]} 45. Kc4 {[%clk 0:00:02.4]}
45... Ne3+ {[%clk 0:00:13]} 46. Kb5 {[%clk 0:00:02.1]} 46... g4 {[%clk
0:00:12.8]} 47. c4 {[%clk 0:00:02.4]} 47... Bxd4 {[%clk 0:00:13]} 48. c5+ {[%clk
0:00:03.1]} 48... Bxc5 {[%clk 0:00:13.7]} 49. Na6 {[%clk 0:00:03.8]} 49... Bd4
{[%clk 0:00:13.4]} 50. b4 {[%clk 0:00:04.7]} 50... g3 {[%clk 0:00:13.4]} 51. a5
{[%clk 0:00:04.9]} 51... g2 {[%clk 0:00:13.9]} 52. Nb8 {[%clk 0:00:05.8]} 52...
g1=Q {[%clk 0:00:13.7]} 53. Nc6 {[%clk 0:00:06.7]} 53... Bf6 {[%clk 0:00:11.6]}
54. Kb6 {[%clk 0:00:06.3]} 54... Nd5+ {[%clk 0:00:11.8]} 55. Kb7 {[%clk
0:00:06.2]} 55... Rc2 {[%clk 0:00:12]} 56. b5 {[%clk 0:00:06.4]} 56... Rxc6
{[%clk 0:00:12.2]} 57. bxc6 {[%clk 0:00:06.3]} 57... Qb1+ {[%clk 0:00:12.5]} 58.
Ka6 {[%clk 0:00:05.6]} 58... Nc7+ {[%clk 0:00:11.7]} 59. Ka7 {[%clk 0:00:06.5]}
59... Bd4# {[%clk 0:00:12.1]} 0-1

[Event "Late-Titled-Tuesday-Blitz-October-10-2023"]
[Site "Chess.com"]
[Date "2023.10.10"]
[Round "4"]
[White "Cambek64"]
[Black "keepitcoming"]
[Result "0-1"]
[WhiteElo "2398"]
[BlackElo "2211"]
[TimeControl "180+1"]
[EndTime "14:37:40 PDT"]
[Termination "keepitcoming won on time"]

1. d4 {[%clk 0:02:50.3]} 1... d5 {[%clk 0:02:58.7]} 2. c4 {[%clk 0:02:49.8]}
2... e6 {[%clk 0:02:59.2]} 3. Nc3 {[%clk 0:02:50.1]} 3... c5 {[%clk 0:02:59.7]}
4. cxd5 {[%clk 0:02:49]} 4... cxd4 {[%clk 0:03:00.1]} 5. Qa4+ {[%clk 0:02:47.7]}
5... Bd7 {[%clk 0:03:00.2]} 6. Qxd4 {[%clk 0:02:47.6]} 6... exd5 {[%clk
0:03:01.1]} 7. Qxd5 {[%clk 0:02:46.7]} 7... Nc6 {[%clk 0:03:01.6]} 8. Qd1 {[%clk
0:02:47.2]} 8... Nf6 {[%clk 0:03:01.7]} 9. e3 {[%clk 0:02:46.5]} 9... Bc5 {[%clk
0:03:02.1]} 10. Nf3 {[%clk 0:02:46.5]} 10... Qe7 {[%clk 0:03:02.5]} 11. a3
{[%clk 0:02:44.1]} 11... O-O-O {[%clk 0:03:02]} 12. Qc2 {[%clk 0:02:43.6]} 12...
g6 {[%clk 0:02:36.2]} 13. b4 {[%clk 0:02:41.7]} 13... Bf5 {[%clk 0:02:12.5]} 14.
Qa4 {[%clk 0:02:29.7]} 14... Bd4 {[%clk 0:02:05]} 15. Bd2 {[%clk 0:02:08.6]}
15... Ne4 {[%clk 0:00:59.5]} 16. Nxe4 {[%clk 0:02:06.3]} 16... Bxa1 {[%clk
0:00:53.3]} 17. Nc5 {[%clk 0:02:04.9]} 17... Kb8 {[%clk 0:00:25]} 18. Bb5 {[%clk
0:02:00.2]} 18... Ne5 {[%clk 0:00:22.4]} 19. e4 {[%clk 0:01:48.5]} 19... Nxf3+
{[%clk 0:00:10.5]} 20. gxf3 {[%clk 0:01:48.7]} 20... Bc8 {[%clk 0:00:10.7]} 21.
Be3 {[%clk 0:01:39.5]} 21... Bd4 {[%clk 0:00:10.6]} 22. Ke2 {[%clk 0:01:35.7]}
22... Bxe3 {[%clk 0:00:09.7]} 23. Kxe3 {[%clk 0:01:33.8]} 23... Qd6 {[%clk
0:00:08.8]} 24. Qc2 {[%clk 0:01:04.7]} 24... g5 {[%clk 0:00:06.6]} 25. Bc4
{[%clk 0:00:56]} 25... Qf4+ {[%clk 0:00:06.5]} 26. Ke2 {[%clk 0:00:55.3]} 26...
g4 {[%clk 0:00:06.4]} 27. Rg1 {[%clk 0:00:37.1]} 27... Qxf3+ {[%clk 0:00:05.2]}
28. Ke1 {[%clk 0:00:37.1]} 28... Rhe8 {[%clk 0:00:05.8]} 29. Rg3 {[%clk
0:00:36.9]} 29... Qf4 {[%clk 0:00:05.7]} 30. Kf1 {[%clk 0:00:34.6]} 30... b6
{[%clk 0:00:05.9]} 31. Bd5 {[%clk 0:00:25.1]} 31... bxc5 {[%clk 0:00:01.8]} 32.
Qxc5 {[%clk 0:00:21.7]} 32... Bd7 {[%clk 0:00:02.7]} 33. Qc4 {[%clk 0:00:15.3]}
33... Qc7 {[%clk 0:00:02.9]} 34. Qd4 {[%clk 0:00:14.9]} 34... Qb6 {[%clk
0:00:02.8]} 35. Qg7 {[%clk 0:00:12.9]} 35... Be6 {[%clk 0:00:03.1]} 36. Rd3
{[%clk 0:00:12.2]} 36... Bxd5 {[%clk 0:00:02.9]} 37. exd5 {[%clk 0:00:12.4]}
37... Re7 {[%clk 0:00:03.4]} 38. Kg2 {[%clk 0:00:10.6]} 38... Red7 {[%clk
0:00:04.3]} 39. Qg5 {[%clk 0:00:09.8]} 39... Qd6 {[%clk 0:00:03.4]} 40. Qxg4
{[%clk 0:00:09]} 40... f6 {[%clk 0:00:03.1]} 41. Qc4 {[%clk 0:00:07.9]} 41...
Qe5 {[%clk 0:00:02.7]} 42. Qb5+ {[%clk 0:00:07.5]} 42... Ka8 {[%clk 0:00:02.3]}
43. Qc6+ {[%clk 0:00:07.4]} 43... Kb8 {[%clk 0:00:02.9]} 44. d6 {[%clk
0:00:07.4]} 44... Rxd6 {[%clk 0:00:03]} 45. Rxd6 {[%clk 0:00:06.1]} 45... Qxd6
{[%clk 0:00:03.9]} 46. Qa4 {[%clk 0:00:04.2]} 46... Qb6 {[%clk 0:00:04]} 47. Kg3
{[%clk 0:00:04]} 47... Rg8+ {[%clk 0:00:03.5]} 48. Kf3 {[%clk 0:00:04.3]} 48...
Qb7+ {[%clk 0:00:04]} 49. Kf4 {[%clk 0:00:03.6]} 49... Qc7+ {[%clk 0:00:04.3]}
50. Kf3 {[%clk 0:00:02.9]} 50... Rg5 {[%clk 0:00:04.5]} 51. Qe8+ {[%clk
0:00:01.8]} 51... Kb7 {[%clk 0:00:05.4]} 0-1

[Event "Late-Titled-Tuesday-Blitz-October-10-2023"]
[Site "Chess.com"]
[Date "2023.10.10"]
[Round "4"]
[White "protectiago"]
[Black "IngOscarArdila"]
[Result "0-1"]
[WhiteElo "2077"]
[BlackElo "2317"]
[TimeControl "180+1"]
[EndTime "14:37:46 PDT"]
[Termination "IngOscarArdila won on time"]

1. d4 {[%clk 0:03:00.9]} 1... Nf6 {[%clk 0:03:00]} 2. c4 {[%clk 0:02:59.9]} 2...
g6 {[%clk 0:03:00.2]} 3. Nc3 {[%clk 0:02:57.9]} 3... Bg7 {[%clk 0:03:00.7]} 4.
e4 {[%clk 0:02:58]} 4... d6 {[%clk 0:03:01.2]} 5. Nf3 {[%clk 0:02:58.3]} 5...
O-O {[%clk 0:03:01.5]} 6. Be2 {[%clk 0:02:58.4]} 6... Nc6 {[%clk 0:03:01.4]} 7.
Be3 {[%clk 0:02:57.9]} 7... e5 {[%clk 0:03:01.8]} 8. d5 {[%clk 0:02:57.8]} 8...
Ne7 {[%clk 0:03:01.1]} 9. Nd2 {[%clk 0:02:58]} 9... Ne8 {[%clk 0:03:00.7]} 10.
b4 {[%clk 0:02:57.8]} 10... f5 {[%clk 0:03:00.9]} 11. f3 {[%clk 0:02:58.2]}
11... f4 {[%clk 0:03:01.2]} 12. Bf2 {[%clk 0:02:58.5]} 12... g5 {[%clk
0:03:01.3]} 13. Nb3 {[%clk 0:02:58.4]} 13... c6 {[%clk 0:02:58.1]} 14. c5 {[%clk
0:02:51.9]} 14... cxd5 {[%clk 0:02:57.3]} 15. Nxd5 {[%clk 0:02:51.3]} 15... Be6
{[%clk 0:02:56.3]} 16. Nxe7+ {[%clk 0:02:46.7]} 16... Qxe7 {[%clk 0:02:55.7]}
17. cxd6 {[%clk 0:02:44.1]} 17... Nxd6 {[%clk 0:02:49.6]} 18. Rc1 {[%clk
0:02:05]} 18... Rad8 {[%clk 0:02:48.4]} 19. Qc2 {[%clk 0:01:55.8]} 19... Rc8
{[%clk 0:02:46.7]} 20. Qb2 {[%clk 0:01:34.2]} 20... Rxc1+ {[%clk 0:02:45.3]} 21.
Qxc1 {[%clk 0:01:32.8]} 21... Rc8 {[%clk 0:02:44.9]} 22. Qd2 {[%clk 0:01:32.6]}
22... Nc4 {[%clk 0:02:40.6]} 23. Bxc4 {[%clk 0:01:19.7]} 23... Bxc4 {[%clk
0:02:40.6]} 24. Bc5 {[%clk 0:01:18.4]} 24... Qe6 {[%clk 0:02:31.7]} 25. Bxa7
{[%clk 0:00:54.8]} 25... Bf8 {[%clk 0:02:13.9]} 26. Nc5 {[%clk 0:00:49.9]} 26...
Bxc5 {[%clk 0:01:55.1]} 27. Bxc5 {[%clk 0:00:47.7]} 27... Bxa2 {[%clk
0:01:54.9]} 28. O-O {[%clk 0:00:43.1]} 28... b6 {[%clk 0:01:54.7]} 29. Bf2
{[%clk 0:00:33.6]} 29... g4 {[%clk 0:01:51.2]} 30. fxg4 {[%clk 0:00:29]} 30...
Bc4 {[%clk 0:01:49.1]} 31. Rc1 {[%clk 0:00:27.4]} 31... b5 {[%clk 0:01:49.2]}
32. h3 {[%clk 0:00:24.2]} 32... h5 {[%clk 0:01:46.4]} 33. gxh5 {[%clk
0:00:21.3]} 33... Kh7 {[%clk 0:01:44.5]} 34. Ra1 {[%clk 0:00:16.6]} 34... Rc7
{[%clk 0:01:43.7]} 35. Ra8 {[%clk 0:00:15.3]} 35... Rg7 {[%clk 0:01:43.2]} 36.
Qd8 {[%clk 0:00:14.2]} 36... Kh6 {[%clk 0:01:07.6]} 37. Qc8 {[%clk 0:00:14]}
37... Qxc8 {[%clk 0:00:51.7]} 38. Rxc8 {[%clk 0:00:13.6]} 38... Kxh5 {[%clk
0:00:52.3]} 39. Kh2 {[%clk 0:00:11.5]} 39... Bf1 {[%clk 0:00:46.7]} 40. Rc5
{[%clk 0:00:06.9]} 40... Rxg2+ {[%clk 0:00:43.2]} 41. Kh1 {[%clk 0:00:07]} 41...
Rxf2 {[%clk 0:00:43.4]} 42. Rxe5+ {[%clk 0:00:06.8]} 42... Kh4 {[%clk
0:00:43.1]} 43. Kg1 {[%clk 0:00:07.2]} 43... Rb2 {[%clk 0:00:40.8]} 44. Kxf1
{[%clk 0:00:06.9]} 44... Rxb4 {[%clk 0:00:39.7]} 45. Rf5 {[%clk 0:00:07.2]}
45... Kg3 {[%clk 0:00:39.5]} 46. e5 {[%clk 0:00:06.8]} 46... Kf3 {[%clk
0:00:37.8]} 47. Ke1 {[%clk 0:00:06.7]} 47... Re4+ {[%clk 0:00:36.5]} 48. Kd2
{[%clk 0:00:06.7]} 48... b4 {[%clk 0:00:36.9]} 49. h4 {[%clk 0:00:06.5]} 49...
b3 {[%clk 0:00:36.5]} 50. h5 {[%clk 0:00:06.3]} 50... Re2+ {[%clk 0:00:33.7]}
51. Kc1 {[%clk 0:00:05.7]} 51... Ke4 {[%clk 0:00:27.9]} 52. Rf8 {[%clk
0:00:05.6]} 52... Rc2+ {[%clk 0:00:20.2]} 53. Kb1 {[%clk 0:00:05.3]} 53... Kxe5
{[%clk 0:00:21.1]} 54. h6 {[%clk 0:00:05.1]} 54... Rh2 {[%clk 0:00:20.9]} 55. h7
{[%clk 0:00:02]} 55... Rxh7 {[%clk 0:00:18.6]} 56. Kb2 {[%clk 0:00:02.6]} 56...
Rh3 {[%clk 0:00:18.2]} 57. Re8+ {[%clk 0:00:01.2]} 57... Kf5 {[%clk 0:00:18.5]}
58. Rf8+ {[%clk 0:00:01.4]} 58... Ke4 {[%clk 0:00:18.8]} 59. Re8+ {[%clk
0:00:01.6]} 59... Kf3 {[%clk 0:00:16.5]} 60. Kxb3 {[%clk 0:00:01.9]} 60... Rh7
{[%clk 0:00:15.7]} 61. Kc2 {[%clk 0:00:02]} 61... Rd7 {[%clk 0:00:15.8]} 0-1